[Event "2nd Serbia Open Masters 2022"]
[Site "Novi Sad"]
[Date "2022.07.02"]
[Round "5.26"]
[White "Fataliyeva, Ulviyya"]
[Black "Milikow, Yoav"]
[Result "1-0"]
[ECO "E04"]
[WhiteElo "2348"]
[BlackElo "2410"]
[Annotator "TA"]
[PlyCount "111"]
[EventDate "2022.06.28"]
[EventType "swiss"]
[EventCountry "SRB"]
[SourceTitle "playchess.com"]
[Source "ChessBase"]
[SourceQuality "1"]
[TimeControl "40/5400+30:900+30"]

{[%evp 12,111,14,0,69,74,82,30,55,24,79,86,82,72,97,87,132,123,121,131,154,157,158,149,183,111,161,103,242,250,228,248,248,241,232,237,239,220,266,228,289,304,412,414,385,356,358,253,269,201,203,187,204,188,215,214,327,326,313,319,387,372,338,356,330,308,315,293,313,309,312,312,304,279,358,306,394,304,304,306,527,293,290,250,242,216,275,268,398,369,735,735,733,735,720,656,814,807,5267,5052,29966,12199]} 1. d4 {[%emt 0:00:45]} e6 {[%emt 0:00:07]} 2. c4 {[%emt 0:00:09]} Nf6 {[%emt 0:00:05]} 3. Nf3 {[%emt 0:00:03]} d5 {[%emt 0:00:07]} 4. g3 {[%emt 0:00:08]} Bb4+ {[%emt 0:00:04]} 5. Nbd2 {[%emt 0:00:06]} O-O {[%emt 0:00:16]} 6. Bg2 {[%emt 0:00:05]} dxc4 {[%emt 0:00:37]} 7. O-O {[%emt 0:00:09]} a5 {[%emt 0:04:11] E04: Open Catalan: 5 Nf3.} (7... b5 $11) 8. Nxc4 $14 {[%emt 0:02:29]} b5 {[%emt 0:00:29] [#]} 9. Na3 $146 {[%emt 0:07:40]} ({White should try} 9. Nce5 $16) ({Predecessor:} 9. Nce5 Bb7 10. Bg5 Be4 11. Rc1 Ra6 12. Qb3 Qd5 13. Qe3 Ne8 14. Bf4 Nd6 15. Rxc7 {0-1 (38) Torkkola,H (2123)-Arvola,B (2300) Athens 2012}) 9... c6 $11 {[%emt 0:05:49] White has an edge.} 10. Ne5 {[%emt 0:09:38]} Ra6 {[%emt 0:00:28]} (10... Qb6 $11 {remains equal.}) 11. Bg5 $16 {[%emt 0:03:09]} h6 {[%emt 0:02:38]} 12. Bxf6 {[%emt 0:00:06] White is more active.} gxf6 {[%emt 0:00:29]} 13. Nd3 {[%emt 0:07:41]} ({Resist} 13. Ng4 h5 14. Ne3 Bd6 $14) 13... Bd6 {[%emt 0:06:45]} 14. Nc2 {[%emt 0:03:37]} f5 {[%emt 0:08:29]} 15. Re1 {[%emt 0:04:43]} Nd7 {[%emt 0:08:03]} 16. e4 {[%emt 0:00:44]} fxe4 {[%emt 0:00:33]} 17. Rxe4 {[%emt 0:00:17]} Kh7 {[%emt 0:02:51]} 18. Ne3 {[%emt 0:04:01]} (18. Qe2 $18) 18... f5 {[%emt 0:01:40]} 19. Rh4 {[%emt 0:08:10]} ({Better is} 19. Rxe6 $18 Nb6 {[#]} 20. Rxd6 $1 Qxd6 21. Nf4) 19... c5 {[%emt 0:06:53] Black cannot hold the game after this.} (19... Be7 $16 {is a better defense.}) 20. Qc1 $18 {[%emt 0:02:39][%cal Oe3f5] [#] Threatens to win with Nxf5!} ({Don't play} 20. Qh5 $6 Qf6 $16) 20... Qf6 {[%emt 0:03:23]} 21. dxc5 {[%emt 0:02:30]} Bc7 {[%emt 0:00:25]} 22. c6 {[%emt 0:07:24]} Ne5 {[%emt 0:00:18] Against Ng4} 23. Nxe5 {[%emt 0:00:43]} Bxe5 {[%emt 0:00:02]} 24. Qc5 {[%emt 0:00:22]} Rd8 {[%emt 0:00:56]} 25. Qxb5 {[%emt 0:03:38]} Bc7 {[%emt 0:02:40]} 26. Re1 {[%emt 0:03:01]} a4 {[%emt 0:12:17]} 27. Rxa4 {[%emt 0:04:46]} Rxa4 {[%emt 0:00:26]} 28. Qxa4 {[%emt 0:00:02]} Qxb2 {[%emt 0:00:01]} 29. Qh4 {[%emt 0:02:40][%cal Oe3f5] Hoping for Nxf5!} Ba5 {[%emt 0:01:50]} 30. Qe7+ {[%emt 0:07:52]} Qg7 {[%emt 0:00:20]} 31. Qxg7+ {[%emt 0:00:10]} Kxg7 {[%emt 0:00:01]} 32. Rb1 {[%emt 0:00:16]} Bc7 {[%emt 0:01:21]} 33. Rb4 {[%emt 0:00:07] Prevents Rd4.} Kf6 {[%emt 0:02:03]} (33... Ba6 {was called for.} 34. Ra4 Bd3) 34. Ra4 {[%emt 0:00:25]} f4 {[%emt 0:03:33]} 35. gxf4 {[%emt 0:01:08]} Bb6 {[%emt 0:00:41]} 36. Ra8 {[%emt 0:01:34]} Ke7 {[%emt 0:01:37]} 37. Nc4 {[%emt 0:02:41]} Bc5 {[%emt 0:00:01]} 38. Bf3 {[%emt 0:01:58]} Rf8 {[%emt 0:00:50]} 39. Ne5 {[%emt 0:01:08] Ng6+ is the strong threat.} Kd6 {[%emt 0:00:35]} 40. Nd3 {[%emt 0:00:00]} Bd4 {[%emt 0:00:00]} 41. Ra4 {[%emt 0:05:11]} Bb6 {[%emt 0:02:15]} 42. Ne5 {[%emt 0:00:02]} Bc7 {[%emt 0:01:20]} 43. Be2 {[%emt 0:00:30]} Kc5 {[%emt 0:00:36]} 44. Rc4+ {[%emt 0:01:40]} Kd6 {[%emt 0:00:51]} 45. Kf1 {[%emt 0:02:17]} Ba5 $2 {[%emt 0:00:47]} (45... Rg8 46. a4 Ba5) 46. Ra4 {[%emt 0:01:31]} Bc3 {[%emt 0:00:23]} 47. Nd3 {[%emt 0:02:03]} Kc7 {[%emt 0:02:07]} 48. Bf3 {[%emt 0:01:30]} Kb6 {[%emt 0:03:50]} 49. Ra8 {[%emt 0:00:20]} e5 {[%emt 0:00:54]} (49... Rh8 {was worth a try.} 50. Ra3 Ba1) 50. Bg4 {[%emt 0:00:09]} Rd8 {[%emt 0:00:43]} (50... e4) 51. Rxc8 {[%emt 0:04:29]} Rxd3 {[%emt 0:00:02]} 52. Rb8+ {[%emt 0:03:26]} Kxc6 {[%emt 0:00:36]} 53. Rb3 {[%emt 0:00:01]} exf4 {[%emt 0:01:03]} 54. Be2 {[%emt 0:00:32]} Rh3 {[%emt 0:00:05]} 55. Kg2 {[%emt 0:00:12]} f3+ {[%emt 0:00:04]} 56. Kxh3 {[%emt 0:00:20] Weighted Error Value: White=0.21 (precise) /Black=0.54} 1-0

[Event "2nd Serbia Open Masters 2022"]
[Site "Novi Sad"]
[Date "2022.07.02"]
[Round "5.27"]
[White "Makridis, Dimitrios"]
[Black "Sturt, Raven"]
[Result "0-1"]
[ECO "B90"]
[WhiteElo "2082"]
[BlackElo "2438"]
[Annotator "TA"]
[PlyCount "92"]
[EventDate "2022.06.28"]
[EventType "swiss"]
[EventCountry "SRB"]
[SourceTitle "playchess.com"]
[Source "ChessBase"]
[SourceQuality "1"]
[TimeControl "40/5400+30:900+30"]

{[%evp 12,92,18,16,30,23,18,0,13,14,0,12,3,19,16,-8,16,4,17,15,10,0,0,0,0,0,0,0,0,-18,-38,-50,0,0,0,0,0,0,0,0,0,0,0,0,0,0,0,-22,-130,-130,-22,-65,0,0,0,0,0,0,0,0,0,-266,-293,-311,-304,-278,-278,-29969,-29970,-29959,-29956,-29948,-29947,-5118,-5118,-29982,-29983,-29983,-29984,-29984,-29985,-29985,-29985]} 1. e4 {[%emt 1:31:00]} c5 {[%emt 0:00:03]} 2. Nf3 {[%emt 0:00:00]} d6 {[%emt 0:00:03]} 3. d4 {[%emt 0:00:00]} cxd4 {[%emt 0:00:03]} 4. Nxd4 {[%emt 0:00:00]} Nf6 {[%emt 0:00:04]} 5. Nc3 {[%emt 0:00:00]} a6 {[%emt 0:00:05]} 6. h3 {[%emt 0:00:00]} e5 {[%emt 0:00:05]} 7. Nde2 {[%emt 0:00:00]} h5 {[%emt 0:00:07] B90: Sicilian Najdorf: Unusual White 6th moves, 6 Be3 Ng4 and 6 Be3 e5.} 8. Bg5 {[%emt 0:00:00]} Be6 {[%emt 0:00:16]} 9. f4 {[%emt 0:00:00]} Nbd7 {[%emt 0:01:30] The position is equal.} 10. f5 {[%emt 0:00:00]} Bc4 {[%emt 0:01:12][%cal Od6d5]} 11. Ng3 {[%emt 0:00:00]} Rc8 {[%emt 0:03:15]} 12. Bxc4 {[%emt 0:00:00]} Rxc4 {[%emt 0:00:06]} 13. Qd3 {[%emt 0:00:00]} Qc7 {[%emt 0:04:16]} 14. Nge2 {[%emt 0:00:00]} b5 {[%emt 0:15:37]} 15. b3 {[%emt 0:00:00]} Rc6 {[%emt 0:04:09] [#]} 16. a4 $146 {[%emt 0:00:00]} ({Predecessor:} 16. O-O-O Be7 17. Kb1 h4 18. Rhg1 b4 19. Nd5 Nxd5 20. exd5 Rc5 21. Be3 Rb5 22. c4 bxc3 23. Nxc3 Rb4 24. Rc1 Qb7 25. Ne4 {½-½ (25) Krupa,B (2185)-Felicio,C (2269) LSS email 2013}) 16... b4 {[%emt 0:02:18]} 17. Nd5 {[%emt 0:00:00]} Nxd5 {[%emt 0:01:03]} 18. exd5 {[%emt 0:00:00]} Rxc2 {[%emt 0:02:35] Threatens to win with ...Rb2.} 19. O-O $1 {[%emt 0:00:00]} Be7 {[%emt 0:02:28]} 20. Rac1 {[%emt 0:00:00]} Rxc1 {[%emt 0:01:13]} 21. Rxc1 {[%emt 0:00:00]} Qb7 {[%emt 0:00:07]} (21... Qb6+ $15 22. Be3 Nc5) 22. Be3 $1 $11 {[%emt 0:00:00]} O-O {[%emt 0:05:40]} 23. Rc6 {[%emt 0:00:00]} Nc5 {[%emt 0:12:23]} 24. Bxc5 {[%emt 0:00:00]} dxc5 {[%emt 0:00:17]} 25. Ng3 {[%emt 0:00:00]} Rd8 $36 {[%emt 0:20:17][%mdl 2048] Black is more active.} 26. f6 {[%emt 0:00:00]} Bxf6 {[%emt 0:00:18]} 27. Nxh5 {[%emt 0:00:00]} Bg5 {[%emt 0:01:04]} (27... Qxc6 $2 28. dxc6 Rxd3 29. c7 $18) 28. Qg3 {[%emt 0:00:00]} f6 {[%emt 0:00:07]} 29. h4 {[%emt 0:00:00] [#]} Rxd5 $1 {[%emt 0:02:27]} 30. Nxf6+ {[%emt 0:00:00]} Bxf6 {[%emt 0:00:16]} ({Much weaker is} 30... gxf6 $6 31. Rxf6 Rd1+ 32. Kh2 $11) 31. Rxf6 {[%emt 0:00:00][%mdl 4096] Endgame KQR-KQR} Qe7 {[%emt 0:04:28]} ({Better is} 31... c4 $1 $15 32. bxc4 Rd1+ 33. Kh2 Qa7) 32. Rxa6 {[%emt 0:00:00]} e4 {[%emt 0:00:05]} 33. Qg4 {[%emt 0:00:00] Against Rd1+} e3 {[%emt 0:05:57]} 34. h5 {[%emt 0:06:01]} Rd8 {[%emt 0:00:15] And now ...Re8 would win.} 35. Re6 {[%emt 0:00:59]} Rd1+ {[%emt 0:00:22]} 36. Qxd1 $4 {[%emt 0:04:12][%mdl 8192]} (36. Kh2 $1 $11 Qc7+ 37. g3 Rd2+ 38. Kh3) 36... Qxe6 {[%emt 0:00:04] KQ-KQ} 37. Qd8+ {[%emt 0:01:16] [#]} Kh7 $1 {[%emt 0:04:14] White must now prevent ...c4.} ({Not} 37... Kf7 38. a5 $11) 38. Qd3+ {[%emt 0:00:10]} Kh6 {[%emt 0:00:02] aiming for ...c4.} 39. Kf1 $2 {[%emt 0:05:36]} (39. Qd8 $19 Kxh5 40. Qc7 Qxb3 41. Qxc5+ Kg6 42. Qc6+ Kg5 43. Qc5+ Kg6 44. Qc6+ Kf5 45. Qf3+ Ke5 46. a5) 39... c4 {[%emt 0:03:55]} 40. bxc4 {[%emt 0:00:00]} b3 {[%emt 0:00:00][%cal Bb4b3,Bb3b2][%mdl 32]} 41. Ke1 {[%emt 0:09:40]} b2 {[%emt 0:01:04]} 42. a5 {[%emt 0:01:58]} g6 {[%emt 0:04:36][%cal Bg7g6,Bg6f5][%mdl 32]} 43. Kd1 {[%emt 0:04:34]} Qg4+ {[%emt 0:02:09] Black mates.} 44. Kc2 {[%emt 0:01:00]} Qf5 {[%emt 0:00:14]} 45. Qxf5 {[%emt 0:00:29]} gxf5 {[%emt 0:00:02]} 46. Kxb2 {[%emt 0:00:14]} e2 {[%emt 0:00:03] Weighted Error Value: White=0.36/Black=0.04 (flawless)} 0-1

[Event "2nd Serbia Open Masters 2022"]
[Site "Novi Sad"]
[Date "2022.07.02"]
[Round "5.28"]
[White "Vaishali R"]
[Black "Srija, Seshadri"]
[Result "1-0"]
[ECO "C79"]
[WhiteElo "2409"]
[BlackElo "2241"]
[Annotator "TA"]
[PlyCount "65"]
[EventDate "2022.06.28"]
[EventType "swiss"]
[EventCountry "SRB"]
[SourceTitle "playchess.com"]
[Source "ChessBase"]
[SourceQuality "1"]
[TimeControl "40/5400+30:900+30"]

{[%evp 15,65,31,32,25,30,25,60,45,64,64,64,64,126,120,101,86,88,83,97,98,92,48,70,66,63,66,64,64,75,76,84,89,130,128,123,112,193,209,262,276,320,312,303,310,291,289,404,408,371,339,317,303]} 1. e4 {[%emt 0:00:35]} e5 {[%emt 0:00:13]} 2. Nf3 {[%emt 0:00:05]} Nc6 {[%emt 0:00:09]} 3. Bb5 {[%emt 0:00:05]} a6 {[%emt 0:00:10]} 4. Ba4 {[%emt 0:00:05]} d6 {[%emt 0:00:23]} 5. c3 {[%emt 0:04:39]} Bd7 {[%emt 0:00:10]} 6. d4 {[%emt 0:00:06]} g6 {[%emt 0:00:32]} 7. O-O {[%emt 0:00:14]} Bg7 {[%emt 0:00:21]} 8. Re1 {[%emt 0:00:41]} Nf6 {[%emt 0:01:17] is currently scoring better than 8...Nge7.} 9. h3 {[%emt 0:02:09] C79: Ruy Lopez: Steinitz-type lines with 3...a6 4 Ba4 Nf6 5 0-0 d6.} O-O {[%emt 0:00:18]} 10. Bc2 {[%emt 0:00:24]} Nh5 {[%emt 0:04:25]} 11. a4 {[%emt 0:01:34] [#] White is slightly better.} h6 $146 {[%emt 0:06:46]} ({Predecessor:} 11... Qc8 12. Na3 Kh8 13. Nc4 b5 14. Ne3 exd4 15. cxd4 Nb4 16. axb5 Bxb5 17. Ra3 Nxc2 18. Qxc2 {1-0 (38) Bjerre,J (2559)-Ochsner,B (2482) Svendborg 2020}) 12. a5 {[%emt 0:13:18]} Qc8 {[%emt 0:03:27]} 13. Be3 {[%emt 0:13:10]} f5 {[%emt 0:13:47]} (13... Re8 $14) 14. exf5 {[%emt 0:03:41]} Bxf5 {[%emt 0:00:21]} 15. Bxf5 {[%emt 0:02:11]} Qxf5 {[%emt 0:03:32]} 16. dxe5 {[%emt 0:04:26]} dxe5 {[%emt 0:04:46] [#]} 17. Nbd2 $1 {[%emt 0:11:08][%cal Bb1d2,Bd2b3,Bb3c5,Bc5d3,Bd3c5][%mdl 32] And now g4 would win.} Qf7 {[%emt 0:08:09]} 18. Qb3 {[%emt 0:07:08]} Qxb3 {[%emt 0:05:24]} 19. Nxb3 {[%emt 0:00:03]} Nf4 {[%emt 0:00:21][%cal Of4h3]} 20. Nfd2 {[%emt 0:08:29]} Nd3 {[%emt 0:09:41][%csl LRb2,LRe1]} 21. Reb1 {[%emt 0:01:40]} Ne7 {[%emt 0:01:03][%cal Bc6e7,Be7f5,Bf5e3][%mdl 32]} 22. Ne4 {[%emt 0:06:20]} Nf5 {[%emt 0:02:22]} 23. Nbc5 {[%emt 0:02:16]} Nxe3 {[%emt 0:03:51]} 24. Nxd3 {[%emt 0:04:21]} Nc4 {[%emt 0:00:57]} 25. Ndc5 {[%emt 0:01:03] Pair of Knights!} Rfb8 {[%emt 0:07:32]} (25... Nd6 $16) 26. Rd1 {[%emt 0:03:04]} Rf8 {[%emt 0:06:25]} 27. b3 {[%emt 0:01:25]} Nxa5 {[%emt 0:03:27]} 28. Rxa5 {[%emt 0:02:14]} b6 {[%emt 0:00:06]} 29. Rxa6 {[%emt 0:00:03]} bxc5 {[%emt 0:00:09]} 30. Rxg6 {[%emt 0:00:08]} Ra2 {[%emt 0:01:42]} 31. Rd7 {[%emt 0:00:26]} Rf7 {[%emt 0:00:10]} 32. Rxf7 {[%emt 0:00:43]} Kxf7 {[%emt 0:00:05]} 33. Rc6 {[%emt 0:00:03] Weighted Error Value: White=0.04 (flawless) /Black=0.23 (precise)} 1-0

[Event "2nd Serbia Open Masters 2022"]
[Site "Novi Sad"]
[Date "2022.07.02"]
[Round "5.29"]
[White "Indjic, Aleksandar"]
[Black "Papaioannou, Dimitrios"]
[Result "1-0"]
[ECO "E94"]
[WhiteElo "2621"]
[BlackElo "2078"]
[Annotator "TA"]
[PlyCount "57"]
[EventDate "2022.06.28"]
[EventType "swiss"]
[EventCountry "SRB"]
[SourceTitle "playchess.com"]
[Source "ChessBase"]
[SourceQuality "1"]
[TimeControl "40/5400+30:900+30"]

{[%evp 15,57,29,58,59,60,61,62,54,72,52,73,0,0,0,0,0,0,0,23,41,119,103,151,134,185,183,169,195,184,165,220,217,351,347,369,357,372,338,415,413,460,443,592,425]} 1. c4 {[%emt 0:00:23]} Nf6 {[%emt 0:00:59]} 2. Nc3 {[%emt 0:01:41]} g6 {[%emt 0:00:09]} 3. e4 {[%emt 0:03:04]} d6 {[%emt 0:00:58]} 4. d4 {[%emt 0:03:00]} Bg7 {[%emt 0:00:09]} 5. Be2 {[%emt 0:00:47]} e5 {[%emt 0:00:51]} 6. Nf3 {[%emt 0:02:19]} O-O {[%emt 0:00:35]} 7. Be3 {[%emt 0:00:43]} Na6 {[%emt 0:14:45]} 8. O-O {[%emt 0:08:18]} Qe7 {[%emt 0:03:02][%cal Of6e4] 8...c6 is becoming the main line.} 9. d5 {[%emt 1:14:45] E94: King's Indian: Classical: 6 Be2 e5 7 0-0: Various Black 7th moves.} Ng4 {[%emt 0:13:20]} 10. Bg5 {[%emt 0:00:00]} f6 {[%emt 0:03:29]} 11. Bh4 {[%emt 0:00:00] White is slightly better.} h5 {[%emt 0:00:54]} 12. h3 {[%emt 0:00:00]} Nh6 {[%emt 0:01:15]} 13. Ne1 {[%emt 0:00:00]} (13. Nd2 $16) 13... g5 $1 $11 {[%emt 0:09:19]} 14. Bg3 $36 {[%emt 0:00:00][%mdl 2048] [#] White has good play.} h4 $146 {[%emt 0:00:17]} ({Predecessor:} 14... g4 15. hxg4 hxg4 16. Nc2 Qf7 17. Ne3 Qg6 18. a3 f5 19. exf5 Nxf5 20. Bd3 Nc5 {½-½ (70) Hagen,A (2187)-Bekker Jensen,S (2414) Helsingor 2013}) 15. Bh2 {[%emt 0:00:00]} f5 $1 {[%emt 0:00:06]} 16. f3 {[%emt 0:00:00] Against g4} fxe4 {[%emt 0:05:04]} 17. Nxe4 {[%emt 0:00:00]} Rf4 {[%emt 0:02:29]} 18. Nd3 $16 {[%emt 0:00:00]} Bd7 {[%emt 0:10:09]} 19. Qd2 {[%emt 0:00:00]} Nf5 {[%emt 0:06:41]} (19... Bf5 $16) 20. b4 $18 {[%emt 0:00:00]} (20. Nxf4 exf4 21. Bd3 Ne3 $16) 20... Ng3 {[%emt 0:12:18]} 21. Bxg3 {[%emt 0:00:00]} ({Much less strong is} 21. Nxf4 Nxe4 22. fxe4 exf4 $16) ({But not} 21. Nxg3 hxg3 22. Bxg3 Rxc4 $16) 21... hxg3 {[%emt 0:00:14]} 22. Rac1 {[%emt 0:00:00]} Rh4 {[%emt 0:05:35]} (22... Raf8 $142) 23. Nxg3 {[%emt 0:00:00]} g4 {[%emt 0:00:52]} (23... Rd4 {was necessary.} 24. Qe3 c6) 24. fxg4 {[%emt 0:00:00]} ({Less strong is} 24. hxg4 Bh6 25. f4 Bxg4 $16) 24... Bh6 {[%emt 0:00:11]} 25. Qb2 {[%emt 0:00:00]} Be3+ {[%emt 0:00:48]} 26. Kh2 {[%emt 0:00:00]} e4 {[%emt 0:02:46] [#]} 27. Nf4 {[%emt 0:00:00]} Qg5 {[%emt 0:00:55] [#] Prevents Ng6.} (27... Rh6 28. Rb1) 28. Nfh5 {[%emt 0:00:00]} Bxc1 {[%emt 0:01:16]} (28... Rxh5 29. gxh5) 29. Rxc1 {[%emt 0:00:00] Weighted Error Value: White=0.07 (flawless) /Black=0.38} 1-0

[Event "2nd Serbia Open Masters 2022"]
[Site "Novi Sad"]
[Date "2022.07.02"]
[Round "5.30"]
[White "Harshavardhan G B"]
[Black "Mendonca, Leon Luke"]
[Result "1-0"]
[ECO "B90"]
[WhiteElo "2367"]
[BlackElo "2551"]
[Annotator "TA"]
[PlyCount "114"]
[EventDate "2022.06.28"]
[EventType "swiss"]
[EventCountry "SRB"]
[SourceTitle "playchess.com"]
[Source "ChessBase"]
[SourceQuality "1"]
[TimeControl "40/5400+30:900+30"]

{[%evp 13,114,17,35,17,0,0,8,3,20,34,19,19,21,20,32,-13,33,0,19,0,43,30,47,56,77,95,89,79,81,80,77,88,69,0,0,0,0,0,0,0,0,0,0,-116,0,0,30,0,73,0,0,0,84,62,62,0,24,0,66,-22,0,-104,68,53,59,89,70,57,152,164,311,302,402,375,550,539,681,700,677,656,712,625,782,793,739,157,349,345,340,321,343,343,343,342,334,320,332,322,315,314,314,314,29994]} 1. e4 {[%emt 0:00:26]} c5 {[%emt 0:00:07]} 2. Nf3 {[%emt 0:00:39]} d6 {[%emt 0:00:05]} 3. d4 {[%emt 0:00:35]} cxd4 {[%emt 0:00:06]} 4. Nxd4 {[%emt 0:00:04]} Nf6 {[%emt 0:00:06]} 5. Nc3 {[%emt 0:00:04]} a6 {[%emt 0:00:05]} 6. Be3 {[%emt 0:00:04]} e5 {[%emt 0:00:22]} 7. Nb3 {[%emt 0:00:06]} Be6 {[%emt 0:01:12]} 8. h3 {[%emt 0:02:50] B90: Sicilian Najdorf: Unusual White 6th moves, 6 Be3 Ng4 and 6 Be3 e5.} Be7 {[%emt 0:00:49]} 9. f4 {[%emt 0:00:05]} exf4 {[%emt 0:01:44]} 10. Bxf4 {[%emt 0:00:06] The position is equal.} Nc6 {[%emt 0:00:59]} 11. Qe2 {[%emt 0:00:05]} Ne5 {[%emt 0:01:12]} 12. O-O-O {[%emt 0:00:40]} Nfd7 {[%emt 0:01:05]} 13. Qe3 {[%emt 0:02:02]} O-O {[%emt 0:02:08]} 14. g4 {[%emt 0:00:04]} Rc8 {[%emt 0:03:17]} (14... Ng6 $11 15. Kb1 (15. Bxd6 $2 Bg5 $19) 15... Nxf4 16. Qxf4 Re8) 15. g5 {[%emt 0:00:22] [#]} Qc7 $146 {[%emt 0:09:27]} (15... Ng6 $5 {[%cal Rg6f4]} 16. Rg1 Nxf4 17. Qxf4 Ne5 $11) ({Predecessor:} 15... Qb6 16. Qg3 a5 17. Be3 Qd8 18. Nd4 Rxc3 19. bxc3 Bxa2 20. h4 Nc5 21. Qg2 Na4 {1-0 (37) Harmon Vellotti,L (2408)-Potapova,M (2300) Chess.com INT 2020}) 16. Nd4 {[%emt 0:15:43]} Nb6 {[%emt 0:05:45]} 17. Qg3 {[%emt 0:20:15]} Rfe8 {[%emt 0:14:02]} 18. h4 {[%emt 0:12:09]} Nbc4 {[%emt 0:04:17]} 19. Bh3 {[%emt 0:10:45]} Qb6 {[%emt 0:17:32][%csl Gc4][%cal Rb6b2]} 20. Na4 {[%emt 0:16:10]} (20. b3 Bxh3 21. Rxh3 Qb4 22. bxc4 Nxc4 $11) 20... Qa5 {[%emt 0:04:22]} 21. Nxe6 {[%emt 0:00:45][%cal Og3b3]} Qxa4 {[%emt 0:03:14]} 22. Qb3 {[%emt 0:00:07] Dancing on a razor blade.} Qa5 {[%emt 0:04:38]} (22... Qc6 $6 23. Nd4 Qxe4 24. Rhf1 $14) 23. Rd5 {[%emt 0:01:04]} (23. Nd4 $14) 23... b5 $11 {[%emt 0:01:25]} 24. Nd4 {[%emt 0:00:07]} Rc5 {[%emt 0:08:20]} 25. Rd1 $1 {[%emt 0:05:16]} Bf8 {[%emt 0:03:14] aiming for ...Ng6.} 26. h5 {[%emt 0:00:49] Inhibits Ng6.} g6 {[%emt 0:01:01]} 27. h6 {[%emt 0:00:27]} Rc7 {[%emt 0:04:27]} 28. a3 {[%emt 0:01:27]} (28. Ne2 $1 $11) 28... Qb6 {[%emt 0:02:43]} (28... Nb6 $17 {White must now prevent ...Nec4.} 29. Kb1 (29. Bd2 Qa4 $17) 29... Nec4) 29. Kb1 {[%emt 0:03:58]} Rb8 {[%emt 0:03:49]} 30. Qg3 {[%emt 0:03:12]} Re8 {[%emt 0:01:33]} (30... b4 $11 {remains equal.} 31. a4 (31. Bxe5 $2 dxe5 32. Nb3 bxa3 $19) 31... Na3+ 32. Ka2 (32. bxa3 Rc3 $15) 32... Nxc2) 31. Qb3 {[%emt 0:00:56]} ({White should play} 31. Bf1 $16) 31... Qa7 {[%emt 0:01:12]} 32. Qg3 {[%emt 0:02:53]} Rc5 {[%emt 0:01:21]} (32... Qb6 $11 {keeps the balance.}) 33. Ka2 {[%emt 0:01:34]} Qc7 {[%emt 0:00:23]} 34. Nb3 {[%emt 0:00:43] White is more active.} (34. Bc1 $14) 34... Rc6 {[%emt 0:00:44][%cal Oc4b2]} 35. Nd4 {[%emt 0:00:30]} (35. Bxe5 $5 Rxe5 36. Rxe5 Nxe5 37. c3 $11) 35... Rc5 {[%emt 0:00:03]} 36. Nb3 {[%emt 0:00:03]} (36. Bc1 $14) 36... Rxd5 {[%emt 0:00:41]} 37. exd5 {[%emt 0:00:49] [#]} (37. Rxd5 $11 Nxa3 38. Kxa3 Qxc2 39. Ka2) 37... Nb6 $2 {[%emt 0:00:19]} ({Better is} 37... Nxa3 $1 $17 {[%mdl 512]} 38. c3 (38. Kxa3 $2 Qxc2 39. Rd4 Nc4+ 40. Rxc4 Qxc4 $19) 38... Nac4) 38. Qf2 $36 {[%emt 0:00:47][%mdl 2048] White has the initiative.} Nec4 {[%emt 0:00:42]} 39. Bg2 {[%emt 0:00:38]} Na4 {[%emt 0:00:54]} 40. Bc1 {[%emt 0:00:00][%cal Bf4c1,Bc1e3,Be3d4][%mdl 32]} Re5 {[%emt 0:00:00] [#]} ({Black should try} 40... b4 $1 $14 41. axb4 Rb8) 41. Nd4 $1 $16 {[%emt 0:03:47]} Ncb6 {[%emt 0:12:44]} (41... b4 {is a better defense.} 42. axb4 Ncxb2 43. Bxb2 Qc4+ 44. Ka3 (44. Nb3 Nxb2 45. Rf1 Rf5 $11) 44... Nxb2) 42. Nc6 $18 {[%emt 0:02:11]} Re8 {[%emt 0:01:43]} 43. Be3 {[%emt 0:01:53]} Nc5 {[%emt 0:01:29]} (43... Nxb2 {was necessary.} 44. Re1 Rxe3 45. Qxe3 N2c4 46. Ne7+ Bxe7 47. Qxe7 Qxe7 48. Rxe7 Kf8) 44. Bd4 {[%emt 0:01:42] Hoping for Qf6.} f5 {[%emt 0:00:47]} 45. gxf6 {[%emt 0:01:51] Strongly threatening Re1.} Qf7 {[%emt 0:00:00]} 46. Kb1 {[%emt 0:01:32]} Nbd7 {[%emt 0:01:11]} 47. Re1 {[%emt 0:00:48] Against Ne4. Threatens to win with Rxe8.} Rxe1+ {[%emt 0:01:06]} 48. Qxe1 {[%emt 0:00:05]} Nxf6 {[%emt 0:00:21]} 49. Bh3 $2 {[%emt 0:01:00] This bishop pair is nice.} (49. Bxc5 $18 {[%cal Og2h3] and White stays clearly on top. Bh3! is the strong threat.} dxc5 50. Bh3) 49... Nfe4 $2 {[%emt 0:00:40] Black cannot hold the game after this.} (49... Nxd5 $16 50. Bxc5 Nf4) 50. b4 {[%emt 0:00:25] White has a decisive advantage.} Qxd5 {[%emt 0:00:31]} 51. bxc5 {[%emt 0:01:32]} dxc5 {[%emt 0:00:26] [#]} 52. Bb2 {[%emt 0:00:14][%cal Oh3g2]} Qxc6 {[%emt 0:00:29]} 53. Bg2 {[%emt 0:00:09]} Bxh6 {[%emt 0:00:22]} (53... Nc3+ 54. Bxc3 Qd7 55. Qe5 Bxh6 56. Qh8+ Kf7 57. Qxh7+) 54. Bxe4 {[%emt 0:00:22]} Qd7 {[%emt 0:00:44]} 55. Qc3 {[%emt 0:02:41] Threatening mate with Qh8+.} Bg7 {[%emt 0:00:27] [#] Prevents Qh8+.} 56. Bd5+ $1 {[%emt 0:00:21][%mdl 512]} Kh8 {[%emt 0:00:11]} 57. Qxc5 {[%emt 0:00:13][%cal Rc5f8]} h5 $2 {[%emt 0:01:24] Weighted Error Value: White=0.31/Black=0.35} (57... Qe8 $18 58. Bxg7+ Kxg7 59. Qa7+ Kh6 60. Qxa6 Kg5) 1-0